fUST/lending_fUST_20250727
["ID","MTS","AMOUNT","RATE_DAILY","PERIOD"]
[375159045,1753558180945,10000.0,0.00019895,2]
[375159046,1753558180968,10000.0,0.00019895,2]
[375159047,1753558180993,10000.0,0.00019895,2]
[375159048,1753558181017,10000.0,0.00019895,2]
[375159049,1753558181041,10000.0,0.00019895,2]
[375159050,1753558181066,10000.0,0.00019895,2]
[375159051,1753558181091,10000.0,0.00019895,2]
[375159052,1753558181115,10000.0,0.00019895,2]
[375159053,1753558181288,10000.0,0.00019895,2]
[375159054,1753558181312,10000.0,0.00019895,2]
[375159055,1753558181334,10000.0,0.00019895,2]
[375159056,1753558181357,10000.0,0.00019895,2]
[375159057,1753558181380,5640.28136916,0.00019895,2]
[375159058,1753558181480,460.0,0.00019622,2]
[375159059,1753558185124,460.0,0.00019622,2]
[375159060,1753558185369,460.0,0.00019896,2]
[375159061,1753558190802,460.0,0.00019447,2]
[375159062,1753558191037,460.0,0.00019721,2]
[375159063,1753558191273,377.69593043,0.00019995,2]
[375159064,1753558191300,460.0,0.00019622,2]
[375159069,1753558194701,460.0,0.00019622,2]
[375159070,1753558195390,460.0,0.00019896,2]
[375159071,1753558195817,302.02270041,0.00019622,2]
[375159072,1753558195841,157.97729959,0.00019622,2]
[375159073,1753558196050,460.0,0.00019896,2]
[375159074,1753558196527,457.32413336,0.00019622,2]
[375159075,1753558196888,460.0,0.00019438,2]
[375159076,1753558197492,150.0,0.00019723,2]
[375159077,1753558197993,712.3,0.0001945,2]
[375159078,1753558199031,460.0,0.00019622,2]
[375159079,1753558199165,712.3,0.00019724,2]
[375159080,1753558199194,460.0,0.00019622,2]
[375159081,1753558199647,712.3,0.00019998,2]
[375159082,1753558203195,460.0,0.00019622,2]
[375159083,1753558203456,460.0,0.00019896,2]
[375159084,1753558205927,460.0,0.00019622,2]
[375159085,1753558206159,460.0,0.00019896,2]
[375159086,1753558209216,178.34617334,0.00020068,2]
[375159087,1753558209716,460.0,0.00019622,2]
[375159088,1753558209952,478.81578655,0.00019896,2]
[375159089,1753558211911,460.0,0.00019622,2]
[375159090,1753558213353,460.0,0.00019622,2]
[375159091,1753558213474,460.0,0.00019896,2]
[375159092,1753558213945,460.0,0.00019622,2]
[375159093,1753558214628,460.63660716,0.000201,2]
[375159094,1753558214655,4539.36339284,0.000201,2]
[375159095,1753558215562,460.0,0.00019438,2]
[375159096,1753558215810,460.0,0.00019712,2]
[375159097,1753558216009,460.0,0.00019622,2]
[375159098,1753558216098,460.0,0.00019986,2]
[375159099,1753558216247,460.0,0.00019896,2]
[375159100,1753558217454,460.0,0.00019622,2]
[375159101,1753558217779,460.0,0.00019896,2]
[375159102,1753558219998,888.41235134,0.000201,2]
[375159103,1753558221219,460.0,0.00019447,2]
[375159104,1753558223700,798.90143108,0.000201,2]
[375159105,1753558224616,93.32282474,0.000201,2]
[375159106,1753558224647,572.42836783,0.000201,2]
[375159107,1753558224677,1586.95,0.00019622,2]
[375159108,1753558225091,1586.95,0.00019896,2]
[375159109,1753558225947,554.79266047,0.000201,2]
[375159110,1753558226414,461.24517883,0.00019446,2]
[375159111,1753558226864,462.32721706,0.000201,2]
[375159112,1753558227813,385.27268088,0.000201,2]
[375159113,1753558228748,460.0,0.00019447,2]
[375159114,1753558228975,321.0605674,0.000201,2]
[375159115,1753558229806,3608.97332753,0.000201,2]
[375159116,1753558229831,1391.02667247,0.000201,2]
[375159117,1753558229859,460.0,0.00019446,2]
[375159118,1753558230182,267.55047284,0.000201,2]
[375159119,1753558231155,222.95872736,0.000201,2]
[375159120,1753558231763,460.0,0.00019622,2]
[375159121,1753558231826,463.09152346,0.00019622,2]
[375159124,1753558232031,460.0,0.00019622,2]
[375159129,1753558232067,185.79893947,0.000201,2]
[375159147,1753558232544,-160.0,0.00020168,2]
[375159149,1753558232554,-823.31253011,0.00020168,2]
[375159151,1753558232563,-300.0,0.00020168,2]
[375159153,1753558232574,-114.38259581,0.00020168,2]
[375159156,1753558232598,-562.1929198,0.00020168,2]
[375159157,1753558232657,-523.42448439,0.00020168,2]
[375159158,1753558232667,-298.0,0.00020168,2]
[375159159,1753558232678,-300.0,0.00020168,2]
[375159160,1753558232687,-203.85196491,0.00020169,2]
[375159161,1753558233158,605.95,0.00019622,2]
[375159167,1753558233744,605.95,0.00019896,2]
[375159168,1753558236127,462.00117944,0.00019622,2]
[375159185,1753558238391,-500.0,0.00020168,2]
[375159186,1753558238407,-91.37280807,0.00020168,2]
[375159187,1753558238420,-408.62719193,0.00020168,2]
[375159188,1753558238431,-173.76360683,0.00020168,2]
[375159189,1753558238441,-567.47155963,0.00020168,2]
[375159190,1753558238452,-292.61215506,0.00020168,2]
[375159191,1753558238462,-156.27233067,0.00020168,2]
[375159192,1753558238472,-500.0,0.00020168,2]
[375159193,1753558238482,-418.84897163,0.00020168,2]
[375159194,1753558238492,-460.0,0.00020169,2]
[375159195,1753558238502,-460.0,0.00020169,2]
[375159196,1753558238512,-961.45852445,0.00020169,2]
[375159197,1753558239041,244.23527073,0.00019622,2]
[375159198,1753558239194,178.34617332,0.00020069,2]
[375159199,1753558239574,313.34526464,0.00019622,2]
[375159202,1753558240390,-25.13147555,0.00020169,2]
[375159203,1753558240400,-934.6,0.00020169,2]
[375159204,1753558240410,-460.0,0.00020169,2]
[375159205,1753558240421,-154.83244956,0.00020169,2]
[375159206,1753558240431,-1185.43607489,0.00020169,2]
[375159207,1753558240447,-48814.56392511,0.00020169,2]
[375159208,1753558240458,-186.36,0.0002017,2]
[375159209,1753558240469,-460.0,0.0002017,2]
[375159210,1753558240479,-522.19,0.0002017,2]
[375159211,1753558240490,-460.0,0.0002017,2]
[375159212,1753558240500,-460.0,0.0002017,2]
[375159213,1753558240510,-460.0,0.0002017,2]
[375159214,1753558240520,-460.0,0.0002017,2]
[375159215,1753558240530,-460.0,0.0002017,2]
[375159217,1753558240539,-460.0,0.0002017,2]
[375159219,1753558240552,-1609.99,0.0002017,2]
[375159221,1753558240561,-460.0,0.0002017,2]
[375159223,1753558240571,-460.0,0.0002017,2]
[375159225,1753558240581,-460.0,0.0002017,2]
[375159227,1753558240590,-460.0,0.0002017,2]
[375159229,1753558240600,-2227.49,0.0002017,2]
[375159231,1753558240609,-460.0,0.0002017,2]
[375159233,1753558240619,-460.0,0.0002017,2]
[375159235,1753558240628,-1044.8,0.0002017,2]
[375159237,1753558240638,-460.0,0.0002017,2]
[375159239,1753558240651,-460.0,0.0002017,2]
[375159241,1753558240660,-460.0,0.0002017,2]
[375159243,1753558240670,-460.0,0.0002017,2]
[375159245,1753558240680,-460.0,0.0002017,2]
[375159247,1753558240690,-460.0,0.0002017,2]
[375159249,1753558240700,-460.0,0.0002017,2]
[375159251,1753558240710,-460.0,0.0002017,2]
[375159253,1753558240719,-460.0,0.0002017,2]
[375159255,1753558240729,-460.0,0.0002017,2]
[375159257,1753558240738,-460.0,0.0002017,2]
[375159259,1753558240748,-460.0,0.0002017,2]
[375159261,1753558240757,-278.99692248,0.0002017,2]
[375159263,1753558240767,-1586.95,0.0002017,2]
[375159265,1753558240777,-605.95,0.0002017,2]
[375159267,1753558240787,-676.8,0.00020171,2]
[375159268,1753558240796,-460.0,0.00020171,2]
[375159270,1753558240806,-460.0,0.00020171,2]
[375159272,1753558240815,-178.3347596,0.000202,2]
[375159274,1753558240824,-178.3347596,0.000202,2]
[375159276,1753558240835,-178.255144,0.000202,2]
[375159278,1753558240844,-460.0,0.00020259,2]
[375159280,1753558240854,-460.0,0.00020259,2]
[375159282,1753558240863,-460.0,0.00020259,2]
[375159284,1753558240872,-460.0,0.0002026,2]
[375159286,1753558240881,-460.0,0.0002026,2]
[375159288,1753558240891,-460.0,0.0002026,2]
[375159290,1753558240900,-460.0,0.0002026,2]
[375159292,1753558240910,-460.0,0.0002026,2]
[375159294,1753558240919,-460.0,0.00020268,2]
[375159296,1753558240928,-460.0,0.00020269,2]
[375159297,1753558240940,-460.0,0.00020269,2]
[375159300,1753558240951,-2370.34,0.00020269,2]
[375159302,1753558240961,-1234.43,0.00020271,2]
[375159304,1753558240971,-460.0,0.00020271,2]
[375159305,1753558240981,-460.0,0.00020272,2]
[375159307,1753558240991,-864.47,0.00020272,2]
[375159309,1753558241000,-460.0,0.00020272,2]
[375159312,1753558241012,-712.3,0.00020272,2]
[375159314,1753558241022,-214.8008262,0.00020387,2]
[375159316,1753558241032,-215.9757969,0.00020387,2]
[375159318,1753558241042,-160.0,0.00020387,2]
[375159320,1753558241051,-242.82203772,0.00020441,2]
[375159322,1753558241060,-842.4107126,0.00020441,2]
[375159323,1753558241070,-842.4107126,0.00020441,2]
[375159325,1753558241083,-842.4107126,0.00020441,2]
[375159328,1753558241094,-842.4107126,0.00020441,2]
[375159330,1753558241104,-842.4107126,0.00020441,2]
[375159332,1753558241114,-842.4107126,0.00020441,2]
[375159333,1753558241124,-26.83198179,0.00020441,2]
[375159336,1753558241136,-815.57873081,0.00020441,2]
[375159338,1753558241146,-842.4107126,0.00020441,2]
[375159339,1753558241155,-842.4107126,0.00020441,2]
[375159341,1753558241164,-842.4107126,0.00020441,2]
[375159343,1753558241174,-842.4107126,0.00020441,2]
[375159345,1753558241183,-842.4107126,0.00020441,2]
[375159347,1753558241192,-842.4107126,0.00020441,2]
[375159349,1753558241202,-842.4107126,0.00020441,2]
[375159351,1753558241211,-842.4107126,0.00020441,2]
[375159353,1753558241220,-842.4107126,0.00020441,2]
[375159355,1753558241229,-842.4107126,0.00020441,2]
[375159357,1753558241238,-842.4107126,0.00020441,2]
[375159359,1753558241248,-842.4107126,0.00020441,2]
[375159361,1753558241258,-842.4107126,0.00020441,2]
[375159363,1753558241267,-842.4107126,0.00020441,2]
[375159365,1753558241277,-460.0,0.00020442,2]
[375159367,1753558241287,-460.0,0.00020442,2]
[375159369,1753558241296,-1430.83,0.00020442,2]
[375159371,1753558241305,-2427.82,0.00020442,2]
[375159373,1753558241315,-186.21,0.00020443,2]
[375159375,1753558241324,-460.0,0.00020443,2]
[375159377,1753558241335,-986.59,0.00020443,2]
[375159379,1753558241345,-934.6,0.00020443,2]
[375159381,1753558241354,-460.0,0.00020443,2]
[375159383,1753558241364,-460.0,0.00020444,2]
[375159385,1753558241374,-460.0,0.00020444,2]
[375159387,1753558241383,-460.0,0.00020444,2]
[375159389,1753558241392,-460.0,0.00020444,2]
[375159390,1753558241401,-403.68565648,0.00020444,2]
[375159393,1753558241413,-56.31434352,0.00020444,2]
[375159395,1753558241422,-460.0,0.00020444,2]
[375159396,1753558241431,-460.0,0.00020444,2]
[375159398,1753558241441,-1609.99,0.00020444,2]
[375159400,1753558241450,-460.0,0.00020444,2]
[375159402,1753558241460,-460.0,0.00020444,2]
[375159404,1753558241469,-460.0,0.00020444,2]
[375159406,1753558241480,-460.0,0.00020444,2]
[375159408,1753558241490,-2227.49,0.00020444,2]
[375159410,1753558241499,-396.39179746,0.00020444,2]
[375159413,1753558241511,-460.0,0.00020444,2]
[375159414,1753558241520,-1044.8,0.00020444,2]
[375159416,1753558241530,-460.0,0.00020444,2]
[375159418,1753558241540,-460.0,0.00020444,2]
[375159420,1753558241549,-460.0,0.00020444,2]
[375159422,1753558241559,-460.0,0.00020444,2]
[375159424,1753558241568,-460.0,0.00020444,2]
[375159426,1753558241579,-460.0,0.00020444,2]
[375159428,1753558241588,-460.0,0.00020444,2]
[375159430,1753558241599,-460.0,0.00020444,2]
[375159432,1753558241608,-460.0,0.00020444,2]
[375159434,1753558241618,-460.0,0.00020444,2]
[375159436,1753558241627,-460.0,0.00020444,2]
[375159438,1753558241637,-460.0,0.00020444,2]
[375159440,1753558241650,-1586.95,0.00020444,2]
[375159442,1753558241659,-605.95,0.00020444,2]
[375159443,1753558241670,-676.8,0.00020445,2]
[375159445,1753558241680,-460.0,0.00020445,2]
[375159447,1753558241692,-460.0,0.00020445,2]
[375159450,1753558241703,-25000.0,0.00020519,2]
[375159451,1753558241712,-460.0,0.00020533,2]
[375159453,1753558241723,-460.0,0.00020533,2]
[375159455,1753558241733,-460.0,0.00020533,2]
[375159457,1753558241742,-460.0,0.00020533,2]
[375159459,1753558241752,-460.0,0.00020533,2]
[375159461,1753558241763,-411.99,0.00020535,3]
[375159463,1753558241772,-205.99,0.00020535,3]
[375159465,1753558241781,-823.98,0.00020536,3]
[375159467,1753558241790,-460.0,0.00020542,2]
[375159469,1753558241800,-460.0,0.00020543,2]
[375159471,1753558241809,-460.0,0.00020543,2]
[375159473,1753558241818,-2370.34,0.00020543,2]
[375159475,1753558241829,-1234.43,0.00020545,2]
[375159477,1753558241838,-460.0,0.00020545,2]
[375159479,1753558241848,-460.0,0.00020546,2]
[375159480,1753558241857,-864.47,0.00020546,2]
[375159482,1753558241866,-460.0,0.00020546,2]
[375159484,1753558241876,-712.3,0.00020546,2]
[375159487,1753558241886,-933.6806376,0.00020586,2]
[375159488,1753558241896,-500.0,0.0002065,2]
[375159491,1753558241908,-460.0,0.00020716,2]
[375159492,1753558241918,-460.0,0.00020716,2]
[375159494,1753558241927,-1430.83,0.00020716,2]
[375159497,1753558241946,-2427.82,0.00020716,2]
[375159499,1753558241957,-460.0,0.00020717,2]
[375159501,1753558241967,-986.59,0.00020717,2]
[375159503,1753558241976,-934.6,0.00020717,2]
[375159505,1753558241986,-460.0,0.00020717,2]
[375159507,1753558241996,-460.0,0.00020718,2]
[375159509,1753558242006,-460.0,0.00020718,2]
[375159511,1753558242015,-460.0,0.00020718,2]
[375159513,1753558242024,-460.0,0.00020718,2]
[375159528,1753558242176,-460.0,0.00020718,2]
[375159530,1753558242186,-460.0,0.00020718,2]
[375159532,1753558242196,-460.0,0.00020718,2]
[375159534,1753558242206,-1609.99,0.00020718,2]
[375159536,1753558242215,-460.0,0.00020718,2]
[375159538,1753558242225,-263.86372922,0.00020718,2]
[375159540,1753558242238,-196.13627078,0.00020718,2]
[375159542,1753558242247,-460.0,0.00020718,2]
[375159544,1753558242257,-460.0,0.00020718,2]
[375159546,1753558242267,-2227.49,0.00020718,2]
[375159548,1753558242276,-320.08731385,0.00020718,2]
[375159550,1753558242285,-1044.8,0.00020718,2]
[375159552,1753558242295,-460.0,0.00020718,2]
[375159554,1753558242305,-460.0,0.00020718,2]
[375159556,1753558242315,-460.0,0.00020718,2]
[375159558,1753558242324,-460.0,0.00020718,2]
[375159560,1753558242335,-460.0,0.00020718,2]
[375159562,1753558242349,-460.0,0.00020718,2]
[375159564,1753558242358,-460.0,0.00020718,2]
[375159567,1753558242369,-460.0,0.00020718,2]
[375159569,1753558242379,-460.0,0.00020718,2]
[375159571,1753558242388,-460.0,0.00020718,2]
[375159572,1753558242397,-460.0,0.00020718,2]
[375159574,1753558242407,-460.0,0.00020718,2]
[375159576,1753558242416,-1586.95,0.00020718,2]
[375159578,1753558242427,-605.95,0.00020718,2]
[375159580,1753558242436,-676.8,0.00020719,2]
[375159582,1753558242446,-460.0,0.00020719,2]
[375159584,1753558242455,-460.0,0.00020719,2]
[375159585,1753558242465,-460.0,0.00020807,2]
[375159586,1753558242475,-460.0,0.00020807,2]
[375159587,1753558242484,-460.0,0.00020807,2]
[375159588,1753558242494,-460.0,0.00020807,2]
[375159589,1753558242503,-460.0,0.00020807,2]
[375159591,1753558242513,-351.48,0.00020816,2]
[375159592,1753558242522,-460.0,0.00020817,2]
[375159593,1753558242532,-460.0,0.00020817,2]
[375159594,1753558242542,-2370.34,0.00020817,2]
[375159595,1753558242551,-711.5904717,0.00020819,2]
[375159596,1753558242568,-522.8395283,0.00020819,2]
[375159597,1753558242579,-37.37554986,0.00020819,2]
[375159598,1753558242591,-422.62445014,0.00020819,2]
[375159599,1753558242601,-399.16275439,0.0002082,2]
[375159600,1753558242647,460.0,0.00019622,2]
[375159601,1753558242705,460.0,0.00019896,2]
[375159604,1753558242967,464.36443734,0.00019622,2]
[375159605,1753558243445,-460.77353787,0.00020259,2]
[375159606,1753558243456,-460.68381771,0.00020259,2]
[375159607,1753558243465,-842.41071262,0.00020441,2]
[375159608,1753558243474,-842.41071262,0.00020441,2]
[375159609,1753558243483,-842.41071262,0.00020441,2]
[375159610,1753558243493,-842.41071262,0.00020441,2]
[375159611,1753558243502,-842.41071262,0.00020441,2]
[375159612,1753558243512,-842.41071262,0.00020441,2]
[375159613,1753558243521,-618.01,0.00020509,3]
[375159614,1753558243530,-60.83724561,0.0002082,2]
[375159615,1753558243539,-864.47,0.0002082,2]
[375159616,1753558243548,-460.0,0.0002082,2]
[375159617,1753558243557,-712.3,0.0002082,2]
[375159618,1753558243566,-460.0,0.0002099,2]
[375159619,1753558243575,-460.0,0.0002099,2]
[375159620,1753558243585,-1430.83,0.0002099,2]
[375159621,1753558243594,-2427.82,0.0002099,2]
[375159622,1753558243603,-460.0,0.00020991,2]
[375159623,1753558243613,-986.59,0.00020991,2]
[375159624,1753558243622,-934.6,0.00020991,2]
[375159625,1753558243632,-460.0,0.00020991,2]
[375159626,1753558243642,-460.0,0.00020992,2]
[375159627,1753558243657,-460.0,0.00020992,2]
[375159628,1753558243667,-460.0,0.00020992,2]
[375159629,1753558243676,-460.0,0.00020992,2]
[375159630,1753558243685,-460.0,0.00020992,2]
[375159631,1753558243696,-460.0,0.00020992,2]
[375159632,1753558243706,-460.0,0.00020992,2]
[375159633,1753558243715,-1609.99,0.00020992,2]
[375159634,1753558243725,-460.0,0.00020992,2]
[375159635,1753558243735,-460.0,0.00020992,2]
[375159636,1753558243746,-460.0,0.00020992,2]
[375159637,1753558243755,-460.0,0.00020992,2]
[375159638,1753558243764,-2227.49,0.00020992,2]
[375159639,1753558243773,-1044.8,0.00020992,2]
[375159640,1753558243783,-460.0,0.00020992,2]
[375159641,1753558243792,-460.0,0.00020992,2]
[375159642,1753558243801,-460.0,0.00020992,2]
[375159643,1753558243810,-460.0,0.00020992,2]
[375159644,1753558243821,-460.0,0.00020992,2]
[375159645,1753558243830,-460.0,0.00020992,2]
[375159646,1753558243840,-460.0,0.00020992,2]
[375159647,1753558243851,-460.0,0.00020992,2]
[375159648,1753558243860,-460.0,0.00020992,2]
[375159649,1753558243869,-460.0,0.00020992,2]
[375159650,1753558243878,-460.0,0.00020992,2]
[375159651,1753558243888,-1586.95,0.00020992,2]
[375159652,1753558243898,-605.95,0.00020992,2]
[375159653,1753558243907,-676.8,0.00020993,2]
[375159654,1753558243916,-460.0,0.00020993,2]
[375159655,1753558243925,-460.0,0.00020993,2]
[375159656,1753558243934,-357.713,0.00021001,2]
[375159657,1753558243943,-10494.92408845,0.00021067,2]
[375159658,1753558243955,-14505.07591155,0.00021067,2]
[375159659,1753558243964,-460.0,0.00021081,2]
[375159660,1753558243974,-460.0,0.00021081,2]
[375159661,1753558243983,-460.0,0.00021081,2]
[375159662,1753558243992,-460.0,0.00021081,2]
[375159663,1753558244001,-460.0,0.00021081,2]
[375159664,1753558244010,-460.0,0.00021091,2]
[375159665,1753558244019,-2370.34,0.00021091,2]
[375159666,1753558244029,-1234.43,0.00021093,2]
[375159667,1753558244039,-460.0,0.00021093,2]
[375159668,1753558244047,-460.0,0.00021094,2]
[375159669,1753558244057,-864.47,0.00021094,2]
[375159670,1753558244066,-460.0,0.00021094,2]
[375159671,1753558244075,-712.3,0.00021094,2]
[375159672,1753558244084,-460.0,0.00021264,2]
[375159673,1753558244094,-460.0,0.00021264,2]
[375159674,1753558244103,-1430.83,0.00021264,2]
[375159675,1753558244112,-2427.82,0.00021264,2]
[375159676,1753558244121,-460.0,0.00021265,2]
[375159677,1753558244130,-986.59,0.00021265,2]
[375159678,1753558244140,-934.6,0.00021265,2]
[375159679,1753558244149,-460.0,0.00021265,2]
[375159680,1753558244158,-580.41,0.00021266,2]
[375159681,1753558244167,-460.0,0.00021266,2]
[375159682,1753558244176,-252.2,0.00021266,2]
[375159683,1753558244185,-460.0,0.00021266,2]
[375159684,1753558244194,-460.0,0.00021266,2]
[375159685,1753558244203,-460.0,0.00021266,2]
[375159686,1753558244211,-1609.99,0.00021266,2]
[375159687,1753558244221,-460.0,0.00021266,2]
[375159688,1753558244230,-460.0,0.00021266,2]
[375159689,1753558244239,-460.0,0.00021266,2]
[375159690,1753558244248,-460.0,0.00021266,2]
[375159691,1753558244257,-2227.49,0.00021266,2]
[375159692,1753558244266,-1044.8,0.00021266,2]
[375159693,1753558244275,-460.0,0.00021266,2]
[375159694,1753558244284,-460.0,0.00021266,2]
[375159695,1753558244294,-460.0,0.00021266,2]
[375159696,1753558244304,-460.0,0.00021266,2]
[375159697,1753558244313,-460.0,0.00021266,2]
[375159698,1753558244322,-460.0,0.00021266,2]
[375159699,1753558244332,-460.0,0.00021266,2]
[375159700,1753558244341,-460.0,0.00021266,2]
[375159701,1753558244351,-460.0,0.00021266,2]
[375159702,1753558244359,-460.0,0.00021266,2]
[375159703,1753558244368,-460.0,0.00021266,2]
[375159704,1753558244377,-1586.95,0.00021266,2]
[375159705,1753558244386,-605.95,0.00021266,2]
[375159706,1753558244395,-676.8,0.00021267,2]
[375159707,1753558244404,-460.0,0.00021267,2]
[375159708,1753558244413,-200.13,0.00021267,2]
[375159709,1753558244423,-515.21,0.00021355,2]
[375159710,1753558244432,-460.0,0.00021355,2]
[375159711,1753558244441,-460.0,0.00021355,2]
[375159712,1753558244450,-460.0,0.00021355,2]
[375159713,1753558244460,-460.0,0.00021355,2]
[375159714,1753558244470,-460.0,0.00021365,2]
[375159715,1753558244479,-2370.34,0.00021365,2]
[375159716,1753558244488,-1234.43,0.00021367,2]
[375159717,1753558244498,-460.0,0.00021367,2]
[375159718,1753558244507,-460.0,0.00021368,2]
[375159719,1753558244517,-864.47,0.00021368,2]
[375159720,1753558244527,-460.0,0.00021368,2]
[375159721,1753558244536,-712.3,0.00021368,2]
[375159722,1753558244546,-220.93,0.00021516,2]
[375159723,1753558244555,-3730.98782785,0.0002152,2]
[375159724,1753558244564,-460.0,0.00021538,2]
[375159725,1753558244574,-460.0,0.00021538,2]
[375159726,1753558244583,-1430.83,0.00021538,2]
[375159727,1753558244594,-2427.82,0.00021538,2]
[375159728,1753558244603,-460.72,0.00021539,2]
[375159729,1753558244613,-986.59,0.00021539,2]
[375159730,1753558244623,-934.6,0.00021539,2]
[375159731,1753558244632,-460.0,0.00021539,2]
[375159732,1753558244642,-460.0,0.0002154,2]
[375159733,1753558244654,-590.85,0.0002154,2]
[375159734,1753558244663,-460.0,0.0002154,2]
[375159735,1753558244672,-460.0,0.0002154,2]
[375159736,1753558244682,-1609.99,0.0002154,2]
[375159737,1753558244692,-460.0,0.0002154,2]
[375159738,1753558244702,-460.0,0.0002154,2]
[375159739,1753558244711,-460.0,0.0002154,2]
[375159740,1753558244721,-2227.49,0.0002154,2]
[375159741,1753558244731,-1044.8,0.0002154,2]
[375159742,1753558244741,-460.0,0.0002154,2]
[375159743,1753558244751,-460.0,0.0002154,2]
[375159744,1753558244761,-460.0,0.0002154,2]
[375159745,1753558244771,-460.0,0.0002154,2]
[375159746,1753558244782,-460.0,0.0002154,2]
[375159747,1753558244792,-460.0,0.0002154,2]
[375159748,1753558244802,-460.0,0.0002154,2]
[375159749,1753558244812,-460.0,0.0002154,2]
[375159750,1753558244822,-460.0,0.0002154,2]
[375159751,1753558244832,-460.0,0.0002154,2]
[375159752,1753558244843,-460.0,0.0002154,2]
[375159753,1753558244853,-1586.95,0.0002154,2]
[375159754,1753558244863,-605.95,0.0002154,2]
[375159755,1753558244873,-676.8,0.00021541,2]
[375159756,1753558244882,-460.0,0.00021541,2]
[375159757,1753558244893,-25000.0,0.00021615,2]
[375159758,1753558244902,-460.0,0.00021629,2]
[375159759,1753558244912,-460.0,0.00021629,2]
[375159760,1753558244922,-460.0,0.00021629,2]
[375159761,1753558244931,-460.0,0.00021629,2]
[375159762,1753558244940,-460.0,0.00021639,2]
[375159763,1753558244950,-2370.34,0.00021639,2]
[375159764,1753558244960,-1234.43,0.00021641,2]
[375159765,1753558244969,-460.0,0.00021641,2]
[375159766,1753558244979,-460.0,0.00021642,2]
[375159767,1753558244989,-864.47,0.00021642,2]
[375159768,1753558245001,-235.65,0.00021642,2]
[375159769,1753558245011,-712.3,0.00021642,2]
[375159770,1753558245020,-1500.0,0.00021746,2]
[375159771,1753558245030,-3609.07108579,0.00021773,2]
[375159773,1753558245040,-460.0,0.00021812,2]
[375159775,1753558245050,-460.0,0.00021812,2]
[375159777,1753558245059,-1430.83,0.00021812,2]
[375159778,1753558245069,-2427.82,0.00021812,2]
[375159779,1753558245079,-986.59,0.00021813,2]
[375159780,1753558245089,-934.6,0.00021813,2]
[375159781,1753558245098,-460.0,0.00021813,2]
[375159782,1753558245109,-460.0,0.00021814,2]
[375159783,1753558245119,-460.0,0.00021814,2]
[375159784,1753558245130,-460.0,0.00021814,2]
[375159785,1753558245140,-1609.99,0.00021814,2]
[375159786,1753558245149,-460.0,0.00021814,2]
[375159787,1753558245159,-460.0,0.00021814,2]
[375159788,1753558245168,-460.0,0.00021814,2]
[375159789,1753558245177,-2227.49,0.00021814,2]
[375159790,1753558245186,-1044.8,0.00021814,2]
[375159791,1753558245196,-470.48,0.00021814,2]
[375159792,1753558245205,-460.0,0.00021814,2]
[375159793,1753558245305,-460.0,0.00021814,2]
[375159794,1753558245315,-460.0,0.00021814,2]